bitfinex/quotes_BTCUSD_20210402
["timestamp","ask_amount","ask_price","bid_price","bid_amount"]
[1617405634906,0.254599,58866.0,58861.0,0.68377426]
[1617405635104,0.424529,58875.0,58861.0,0.68377426]
[1617405635306,0.424529,58875.0,58862.0,0.1]
[1617405635509,0.08506611,58876.0,58863.0,0.04867481]
[1617405635709,0.0002,58876.0,58865.0,0.00300781]
[1617405635907,0.0002,58876.0,58866.0,0.15329845]
[1617405636105,0.0002,58876.0,58867.0,0.24716333]
[1617405636307,0.0002,58876.0,58873.0,0.045653]
[1617405636508,0.0002,58876.0,58873.0,0.28980852]
[1617405636703,0.0002,58876.0,58873.0,0.68375226]
[1617405637103,0.0002,58876.0,58873.0,0.85875226]
[1617405637304,0.0002,58876.0,58873.0,0.90875226]
[1617405637506,0.0002,58876.0,58873.0,1.00875226]
[1617405637908,0.0002,58876.0,58873.0,0.61459674]
[1617405638111,0.0006,58878.0,58874.0,0.00300781]
[1617405638112,0.05279,58878.0,58874.0,0.00300781]
[1617405638307,0.05279,58878.0,58874.0,0.39394374]
[1617405638507,0.387115,58877.0,58866.0,0.39394374]
[1617405638709,0.387115,58877.0,58867.0,0.00300781]
[1617405638905,0.0052,58875.0,58868.0,0.045654]
[1617405639106,0.0002,58875.0,58868.0,0.43959774]
[1617405639305,0.0002,58875.0,58869.0,0.39394374]
[1617405639506,0.0002,58875.0,58870.0,0.39394374]
[1617405639707,0.0002,58875.0,58870.0,0.64959974]
[1617405640103,0.254569,58876.0,58870.0,0.64959974]
[1617405640306,0.254569,58876.0,58870.0,0.60394374]
[1617405640507,0.5095,58878.0,58871.0,0.045654]
[1617405640508,0.5115,58878.0,58871.0,0.045654]
[1617405640712,0.5095,58878.0,58875.0,0.24415552]
[1617405640909,0.5095,58878.0,58876.0,0.045646]
[1617405641913,0.5095,58878.0,58875.0,0.14]
[1617405642139,0.387115,58877.0,58864.0,0.88854374]
[1617405642342,0.5095,58878.0,58867.0,0.00300781]
[1617405642538,0.5115,58878.0,58869.0,0.00300781]
[1617405642738,0.5095,58878.0,58870.0,0.045654]
[1617405642936,0.5095,58878.0,58871.0,0.24415552]
[1617405643137,0.5095,58878.0,58872.0,0.190652]
[1617405643336,0.5095,58878.0,58872.0,0.045652]
[1617405643736,0.5095,58878.0,58873.0,0.63809926]
[1617405643939,0.5095,58878.0,58874.0,0.43959274]
[1617405644139,0.5095,58878.0,58875.0,0.24415552]
[1617405644344,0.127283,58877.0,58875.0,0.63809926]
[1617405644536,0.127283,58877.0,58876.0,0.045646]
[1617405644755,0.127283,58877.0,58876.0,0.260646]
[1617405646362,0.127283,58877.0,58876.0,0.360646]
[1617405646563,0.5095,58878.0,58876.0,0.75458974]
[1617405646762,0.5095,58878.0,58877.0,3.365644]
[1617405646961,0.5095,58878.0,58877.0,4.48958774]
[1617405647159,0.5095,58878.0,58877.0,4.58958774]
[1617405647583,0.5095,58878.0,58877.0,4.63958774]
[1617405648586,0.5095,58878.0,58877.0,0.58958774]
[1617405648784,0.5095,58878.0,58877.0,0.83374326]
[1617405649239,0.5095,58878.0,58877.0,1.85374326]
[1617405649440,0.5095,58878.0,58877.0,1.16374326]
[1617405650088,0.5095,58878.0,58877.0,7.12374326]
[1617405650283,0.5095,58878.0,58877.0,7.38886326]
[1617405650683,0.5095,58878.0,58877.0,1.42886326]
[1617405650888,0.50546379,58878.0,58877.0,4.45886326]
[1617405651687,6.379e-05,58878.0,58877.0,4.54988326]
[1617405651887,6.379e-05,58878.0,58877.0,4.47056326]
[1617405652085,6.379e-05,58878.0,58877.0,4.31056326]
[1617405652288,6.379e-05,58878.0,58877.0,5.11056326]
[1617405653099,0.24606379,58888.0,58878.0,6.37]
[1617405653297,0.24606379,58888.0,58879.0,0.00300781]
[1617405653496,0.24606379,58888.0,58880.0,0.045635]
[1617405653696,0.24606379,58888.0,58880.0,0.43957874]
[1617405653896,0.24606379,58888.0,58881.0,0.49394374]
[1617405654096,0.24606379,58888.0,58882.0,1.045632]
[1617405654396,0.24606379,58888.0,58884.0,0.045629]
[1617405655227,0.24606379,58888.0,58887.0,0.045626]
[1617405655423,0.24606379,58888.0,58887.0,0.045624]
[1617405657838,0.24606379,58888.0,58887.0,0.205624]
[1617405658036,0.24606379,58888.0,58887.0,0.69956774]
[1617405659840,0.24606379,58888.0,58887.0,0.59956774]
[1617405660242,0.24606379,58888.0,58887.0,0.43956774]
[1617405660465,0.24606379,58888.0,58880.0,0.39394374]
[1617405660664,0.24606379,58888.0,58881.0,0.04563]
[1617405660865,0.24606379,58888.0,58882.0,1.0]
[1617405661064,0.24606379,58888.0,58884.0,0.8]
[1617405661263,0.24606379,58888.0,58885.0,0.045628]
[1617405661661,0.24606379,58888.0,58885.0,0.29221898]
[1617405661866,0.24606379,58888.0,58886.0,0.38]
[1617405662066,0.24606379,58888.0,58887.0,0.43956874]
[1617405662263,0.24606379,58888.0,58887.0,0.53956874]
[1617405662863,0.24606379,58888.0,58887.0,0.67956874]
[1617405665393,0.24106379,58888.0,58887.0,0.67956874]
[1617405667620,0.24106379,58888.0,58887.0,0.77956874]
[1617405670048,0.24106379,58888.0,58887.0,2.38956874]
[1617405670646,0.24106379,58888.0,58887.0,0.77956874]
[1617405670849,0.24106379,58888.0,58887.0,1.98615972]
[1617405671089,0.24106379,58888.0,58887.0,1.02615972]
[1617405671290,0.24106379,58888.0,58887.0,0.77956874]
[1617405672095,0.24106379,58888.0,58887.0,0.82956874]
[1617405672690,0.24106379,58888.0,58887.0,0.90956874]
[1617405674494,1.1078318,58888.0,58887.0,0.90956874]
[1617405674704,1.1078318,58888.0,58887.0,0.96840874]
[1617405675894,1.1078318,58888.0,58887.0,2.11840874]
[1617405676322,1.1078318,58888.0,58887.0,0.96840874]
[1617405676521,1.1078318,58888.0,58887.0,0.90956874]
[1617405676720,1.1078318,58888.0,58887.0,0.90823374]
[1617405676920,1.1078318,58888.0,58887.0,2.03823374]
[1617405677522,1.1078318,58888.0,58887.0,0.90823374]
[1617405677723,1.1028318,58888.0,58887.0,0.90823374]
[1617405677922,1.1028318,58888.0,58887.0,1.09823374]
[1617405678522,1.1028318,58888.0,58887.0,0.90823374]
[1617405678950,1.1028318,58888.0,58887.0,2.21823374]
[1617405679227,1.1028318,58888.0,58887.0,0.90823374]
[1617405679424,1.0932318,58888.0,58887.0,2.07823374]
[1617405679824,1.0932318,58888.0,58887.0,3.61823374]
[1617405680227,1.0932318,58888.0,58887.0,2.07823374]
[1617405680425,1.0932318,58888.0,58887.0,2.07323374]
[1617405680827,1.0932318,58888.0,58887.0,5.12323374]
[1617405681226,1.0932318,58888.0,58887.0,2.07323374]
[1617405681827,1.0932318,58888.0,58887.0,3.85323374]
[1617405682822,1.0932318,58888.0,58887.0,7.99323374]
[1617405683222,1.0836318,58888.0,58887.0,3.85323374]
[1617405683824,1.0836318,58888.0,58887.0,7.96323374]
[1617405684222,1.0836318,58888.0,58887.0,3.85323374]
[1617405684823,1.0836318,58888.0,58887.0,5.35323374]
[1617405685025,0.5836318,58888.0,58887.0,5.35323374]
[1617405685425,0.5836318,58888.0,58887.0,3.85323374]
[1617405686829,0.5836318,58888.0,58887.0,5.96323374]
[1617405687427,0.5836318,58888.0,58887.0,3.85323374]
[1617405687828,0.5836318,58888.0,58887.0,3.54323374]
[1617405688028,0.5786318,58888.0,58887.0,5.22323374]
[1617405688232,0.5786318,58888.0,58887.0,2.07323374]
[1617405688428,0.5786318,58888.0,58887.0,0.90323374]
[1617405689461,0.5786318,58888.0,58887.0,0.75956874]
[1617405689858,0.5686318,58888.0,58887.0,2.97956874]
[1617405690059,0.5686318,58888.0,58887.0,0.75956874]
[1617405690658,0.5686318,58888.0,58887.0,2.76956874]
[1617405692074,0.5686318,58888.0,58887.0,0.90956874]
[1617405692279,0.5586318,58888.0,58887.0,2.36956874]
[1617405692680,0.5586318,58888.0,58887.0,3.75956874]
[1617405693277,0.5586318,58888.0,58887.0,0.90956874]
[1617405693683,0.5586318,58888.0,58887.0,0.66956874]
[1617405693886,0.5586318,58888.0,58887.0,0.62394374]
[1617405694179,0.5586318,58888.0,58887.0,0.66956774]
[1617405694381,0.5586318,58888.0,58887.0,0.51956774]
[1617405694610,0.5586318,58888.0,58887.0,0.66456774]
[1617405695215,0.5586318,58888.0,58887.0,1.15456774]
[1617405695423,0.001,58905.0,58891.0,7.57]
[1617405695625,0.0006,58912.0,58907.0,0.4063171]
[1617405695820,0.0006,58912.0,58907.0,1.08282762]
[1617405696017,0.0006,58912.0,58908.0,6.525583]
[1617405696212,0.0006,58912.0,58908.0,6.625583]
[1617405696413,0.0006,58912.0,58908.0,7.625583]
[1617405696714,0.171,58909.0,58908.0,7.625583]
[1617405697737,0.171,58909.0,58908.0,8.5959968]
[1617405697936,0.1097,58909.0,58908.0,10.3359968]
[1617405698137,0.1097,58909.0,58908.0,8.225583]
[1617405699135,0.1097,58909.0,58908.0,1.745583]
[1617405699339,0.1097,58909.0,58908.0,2.09699861]
[1617405699538,0.3897,58909.0,58908.0,1.09699861]
[1617405699739,0.00219815,58910.0,58908.0,1.13952674]
[1617405699963,0.001,58914.0,58909.0,0.370582]
[1617405700162,0.22367992,58915.0,58910.0,0.04558]
[1617405700364,0.24825194,58914.0,58910.0,0.04558]
[1617405700569,0.68322194,58914.0,58909.0,0.71894374]
[1617405700763,0.68322194,58914.0,58910.0,0.245]
[1617405700963,0.94419,58914.0,58910.0,0.63894374]
[1617405701162,0.94419,58914.0,58910.0,0.39394374]
[1617405701363,0.94419,58914.0,58911.0,0.39394374]
[1617405701558,0.94419,58914.0,58906.0,0.339159]
[1617405701762,0.94419,58914.0,58907.0,0.39394374]
[1617405701958,0.94419,58914.0,58908.0,0.16]
[1617405702163,0.94419,58914.0,58908.0,0.55394374]
[1617405702987,1.01202991,58914.0,58908.0,0.55394374]
[1617405703196,0.94419,58914.0,58908.0,0.60394374]
[1617405703392,0.94419,58914.0,58909.0,0.195]
[1617405703590,0.50922,58914.0,58913.0,0.045574]
[1617405703790,0.50922,58914.0,58910.0,0.69219568]
[1617405703988,0.50922,58914.0,58913.0,0.180573]
[1617405704187,0.50922,58914.0,58913.0,0.434924]
[1617405704392,0.50922,58914.0,58913.0,0.87886774]
[1617405704590,0.48782,58914.0,58913.0,0.87886774]
[1617405704790,0.48282,58914.0,58913.0,0.87886774]
[1617405705235,0.0009551,58917.0,58913.0,0.484924]
[1617405705429,5.502e-05,58919.0,58914.0,2.37067922]
[1617405705624,5.502e-05,58919.0,58918.0,0.045564]
[1617405706423,5.502e-05,58919.0,58918.0,0.530564]
[1617405706626,5.502e-05,58919.0,58918.0,1.02450774]
[1617405707426,5.502e-05,58919.0,58918.0,0.92450774]
[1617405707621,5.502e-05,58919.0,58918.0,0.43950774]
[1617405707841,5.502e-05,58919.0,58918.0,0.34624322]
[1617405708036,5.502e-05,58919.0,58918.0,0.84018696]
[1617405708237,5.502e-05,58919.0,58918.0,1.00018696]
[1617405708436,0.0008,58928.0,58918.0,1.00018696]
[1617405708638,0.00025502,58926.0,58919.0,0.19]
[1617405708836,0.00025502,58926.0,58920.0,0.254323]
[1617405709039,0.00025502,58926.0,58921.0,0.845556]
[1617405709311,0.00025502,58926.0,58922.0,0.1]
[1617405709520,3.0,58924.0,58923.0,0.275553]
[1617405709711,3.0,58924.0,58923.0,0.23]
[1617405710111,3.0,58924.0,58923.0,0.534309]
[1617405710310,3.0,58924.0,58923.0,0.634309]
[1617405712108,2.99,58924.0,58923.0,0.634309]
[1617405713109,2.985,58924.0,58923.0,0.634309]
[1617405713510,3.881245,58924.0,58923.0,0.634309]
[1617405713712,3.49413,58924.0,58923.0,0.634309]
[1617405714512,2.99353,58924.0,58923.0,0.634309]
[1617405715110,2.16293,58924.0,58923.0,0.634309]
[1617405718112,2.16293,58924.0,58923.0,0.88884064]
[1617405718330,2.16293,58924.0,58923.0,0.634309]
[1617405720538,2.75722578,58924.0,58923.0,0.634309]
[1617405723984,2.49822578,58924.0,58923.0,0.634309]
[1617405725266,1.49822578,58924.0,58923.0,9.34061552]
[1617405725468,0.0002,58932.0,58930.0,0.12338098]
[1617405725667,0.0002,58932.0,58931.0,1.0159518]
[1617405725861,0.0002,58932.0,58931.0,1.45489554]
[1617405726059,0.0002,58932.0,58931.0,2.19489554]
[1617405726262,0.0002,58932.0,58931.0,1.62861962]
[1617405726464,0.0404,58939.0,58931.0,2.55489554]
[1617405726664,0.00714264,58939.0,58935.0,0.254229]
[1617405726864,0.00714264,58939.0,58938.0,0.045526]
[1617405727061,0.00714264,58939.0,58938.0,3.00946974]
[1617405727260,0.21514264,58943.0,58938.0,0.53946974]
[1617405727461,0.21014264,58943.0,58938.0,0.72326509]
[1617405727664,0.21014264,58943.0,58940.0,0.254218]
[1617405727862,0.21014264,58943.0,58941.0,0.045519]
[1617405728059,0.21014264,58943.0,58942.0,0.44]
[1617405728258,0.21014264,58943.0,58942.0,4.66945974]
[1617405728464,0.21014264,58943.0,58942.0,4.8031946]
[1617405728662,0.21014264,58943.0,58942.0,5.0331946]
[1617405728863,0.21014264,58943.0,58942.0,6.0586084]
[1617405729261,0.21014264,58943.0,58942.0,11.1686084]
[1617405729465,3.23084264,58947.0,58943.0,8.70469904]
[1617405729664,3.22584264,58947.0,58944.0,1.40935754]
[1617405729865,3.22584264,58947.0,58946.0,6.96619244]
[1617405730065,3.22584264,58947.0,58946.0,7.47496064]
[1617405730263,2.22564264,58947.0,58946.0,10.46037444]
[1617405730462,2.22564264,58947.0,58946.0,12.26037444]
[1617405730662,2.22564264,58947.0,58946.0,12.12660624]
[1617405730865,2.22564264,58947.0,58946.0,12.46548924]
[1617405731260,1.22544264,58947.0,58946.0,12.46548924]
[1617405731459,1.22544264,58947.0,58946.0,12.55654045]
[1617405731662,1.22544264,58947.0,58946.0,12.61530458]
[1617405732263,1.22544264,58947.0,58946.0,2.63920834]
[1617405732461,1.22544264,58947.0,58946.0,1.63920834]
[1617405732861,1.21544264,58947.0,58946.0,1.63920834]
[1617405733261,1.21544264,58947.0,58946.0,4.90920834]
[1617405733461,1.21544264,58947.0,58946.0,4.81815713]
[1617405733671,1.21544264,58947.0,58946.0,1.7382387]
[1617405733862,1.20544264,58947.0,58946.0,4.4882387]
[1617405734284,1.20544264,58947.0,58946.0,7.1482387]
[1617405734484,1.20544264,58947.0,58946.0,4.6482387]
[1617405734890,1.20544264,58947.0,58946.0,5.6136525]
[1617405735090,0.20524264,58947.0,58946.0,11.8036525]
[1617405735292,0.00024264,58947.0,58946.0,12.1248068]
[1617405735491,0.0006,58959.0,58946.0,12.1248068]
[1617405735692,0.0004,58965.0,58946.0,12.1248068]
[1617405735903,0.002,58961.0,58958.0,0.0391854]
[1617405736099,0.002,58966.0,58965.0,0.01958676]
[1617405736299,0.387115,58966.0,58959.0,0.04736068]
[1617405736493,0.779,58968.0,58960.0,0.03916456]
[1617405736710,0.50877,58966.0,58961.0,0.245]
[1617405736910,0.50877,58966.0,58962.0,0.03915395]
[1617405737109,0.50877,58966.0,58962.0,0.08664708]
[1617405737320,0.50877,58966.0,58963.0,0.045473]
[1617405737512,0.49377,58966.0,58963.0,0.045473]
[1617405737713,0.49377,58966.0,58964.0,0.205]
[1617405738112,0.49377,58966.0,58965.0,0.245]
[1617405738312,0.880885,58966.0,58965.0,0.75]
[1617405738509,0.875885,58966.0,58965.0,0.7]
[1617405740346,0.779954,58968.0,58965.0,0.7]
[1617405740544,0.387025,58966.0,58965.0,0.7]
[1617405740750,0.387025,58966.0,58958.0,0.154]
[1617405740951,0.781954,58968.0,58962.0,0.7]
[1617405741146,0.781954,58968.0,58962.0,1.09394374]
[1617405741345,1.288704,58968.0,58962.0,1.14394374]
[1617405741552,1.28575,58968.0,58963.0,0.64894374]
[1617405741748,1.28575,58968.0,58964.0,0.27811706]
[1617405741985,1.28575,58968.0,58965.0,0.29]
[1617405742181,1.28575,58968.0,58965.0,0.68394374]
[1617405742379,1.28575,58968.0,58966.0,0.36]
[1617405742581,1.28575,58968.0,58967.0,0.39394374]
[1617405742783,1.28575,58968.0,58967.0,0.49394374]
[1617405743182,1.28575,58968.0,58967.0,1.15596874]
[1617405744196,1.28575,58968.0,58967.0,10.17790254]
[1617405744388,1.28575,58968.0,58967.0,11.01790254]
[1617405744590,1.28575,58968.0,58967.0,10.87690254]
[1617405744990,1.28075,58968.0,58967.0,5.69690254]
[1617405745192,1.28075,58968.0,58967.0,3.04566154]
[1617405745590,1.28075,58968.0,58967.0,3.53566154]
[1617405745790,0.28075,58968.0,58967.0,8.91566154]
[1617405745990,0.28075,58968.0,58967.0,6.67566154]
[1617405746192,0.28075,58968.0,58967.0,10.00566154]
[1617405746793,0.28075,58968.0,58967.0,7.17566154]
[1617405746991,0.28075,58968.0,58967.0,10.47566154]
[1617405747818,0.28075,58968.0,58967.0,4.03566154]
[1617405748217,0.28075,58968.0,58967.0,3.86666154]
[1617405749018,0.28075,58968.0,58967.0,7.01666154]
[1617405749617,0.28075,58968.0,58967.0,6.05124774]
[1617405749840,0.28075,58968.0,58967.0,5.80124774]
[1617405750040,0.28075,58968.0,58967.0,6.94666154]
[1617405750437,0.28075,58968.0,58967.0,2.65124774]
[1617405751242,0.28075,58968.0,58967.0,2.41124774]
[1617405751440,0.28075,58968.0,58967.0,2.65124774]
[1617405751640,0.28075,58968.0,58967.0,2.41124774]
[1617405751842,0.27575,58968.0,58967.0,3.66124774]
[1617405752865,0.27575,58968.0,58967.0,3.37666154]
[1617405753069,0.27075,58968.0,58967.0,2.41124774]
[1617405753268,0.26575,58968.0,58967.0,2.41124774]
[1617405753472,0.60931,58968.0,58967.0,2.03472774]
[1617405753669,0.60931,58968.0,58967.0,1.19596874]
[1617405753867,0.60931,58968.0,58967.0,0.415]
[1617405754543,0.59931,58968.0,58967.0,0.6941825]
[1617405754745,0.59931,58968.0,58967.0,0.4191825]
[1617405754936,0.59431,58968.0,58960.0,0.2791825]
[1617405755141,0.59431,58968.0,58954.0,0.69553905]
[1617405755340,0.59431,58968.0,58960.0,0.155]
[1617405755543,1.00610472,58968.0,58967.0,0.2791825]
[1617405755743,1.00610472,58968.0,58967.0,1.63854004]
[1617405756138,1.00610472,58968.0,58967.0,1.88854004]
[1617405756537,1.00610472,58968.0,58967.0,0.64394374]
[1617405756742,1.00610472,58968.0,58967.0,0.3]
[1617405756942,1.00610472,58968.0,58967.0,0.05]
[1617405757143,1.00610472,58968.0,58967.0,0.254075]
[1617405757344,1.00610472,58968.0,58967.0,1.2194888]
[1617405757540,1.00610472,58968.0,58967.0,0.254075]
[1617405757742,1.00610472,58968.0,58967.0,0.5332575]
[1617405757942,1.00610472,58968.0,58967.0,2.7782575]
[1617405758143,1.00610472,58968.0,58967.0,0.7582575]
[1617405758341,1.00610472,58968.0,58967.0,0.479075]
[1617405758542,1.00610472,58968.0,58967.0,0.529075]
[1617405758742,1.00610472,58968.0,58967.0,0.479075]
[1617405759544,1.00610472,58968.0,58967.0,0.334075]
[1617405760350,1.00610472,58968.0,58967.0,0.6132575]
[1617405760547,1.00610472,58968.0,58967.0,0.334075]
[1617405761751,1.00610472,58968.0,58967.0,0.128987]
[1617405761953,1.16610472,58968.0,58967.0,0.128987]
[1617405762154,1.00610472,58968.0,58967.0,0.08]
[1617405762748,1.37733472,58968.0,58967.0,0.08]
[1617405764963,1.37733472,58968.0,58967.0,0.35983584]
[1617405765167,1.37733472,58968.0,58967.0,0.40983584]
[1617405765997,1.37733472,58968.0,58967.0,0.13]
[1617405766195,1.37733472,58968.0,58967.0,0.08]
[1617405766993,1.37733472,58968.0,58967.0,0.35983584]
[1617405767197,0.99610472,58968.0,58967.0,2.48983584]
[1617405767402,0.99610472,58968.0,58967.0,4.27580458]
[1617405767593,0.99610472,58968.0,58967.0,5.59208199]
[1617405767796,0.99610472,58968.0,58967.0,6.73208199]
[1617405767993,0.99610472,58968.0,58967.0,5.80666819]
[1617405768218,0.99610472,58968.0,58967.0,2.49666819]
[1617405768418,0.99610472,58968.0,58967.0,3.02208199]
[1617405768820,0.99610472,58968.0,58967.0,9.39208199]
[1617405769019,0.99610472,58968.0,58967.0,9.63208199]
[1617405769217,0.99610472,58968.0,58967.0,9.55308199]
[1617405769490,0.99610472,58968.0,58967.0,9.6391332]
[1617405769883,0.00106387,58969.0,58968.0,9.5054138]
[1617405770087,0.00106387,58969.0,58968.0,10.60323363]
[1617405770284,0.00106387,58969.0,58968.0,8.88919091]
[1617405770489,0.00106387,58969.0,58968.0,8.70317485]
[1617405770683,0.00106387,58969.0,58968.0,8.94317485]
[1617405771087,0.00106387,58969.0,58968.0,8.32776105]
[1617405771483,0.00106387,58969.0,58968.0,9.29317485]
[1617405771683,0.00106387,58969.0,58968.0,8.32776105]
[1617405771883,0.00106387,58969.0,58968.0,11.66317485]
[1617405772083,0.00106387,58969.0,58968.0,9.39317485]
[1617405772285,0.24706387,58970.0,58969.0,8.487011]
[1617405772485,0.24706387,58970.0,58969.0,9.787011]
[1617405772685,0.24706387,58970.0,58969.0,10.99227143]
[1617405772885,0.23706387,58970.0,58969.0,11.09227143]
[1617405773288,0.23706387,58970.0,58969.0,11.24727143]
[1617405773289,0.01906387,58970.0,58969.0,11.24727143]
[1617405773485,0.01344621,58970.0,58969.0,11.24727143]
[1617405773688,0.0004,58971.0,58970.0,9.4854138]
[1617405773887,0.0004,58971.0,58970.0,11.0847048]
[1617405774085,0.0004,58971.0,58970.0,11.23520764]
[1617405774285,0.0004,58971.0,58970.0,11.33053996]
[1617405774488,0.0004,58971.0,58970.0,1.56084505]
[1617405774690,0.0004,58971.0,58970.0,5.21084505]
[1617405774885,0.0004,58971.0,58970.0,6.17625885]
[1617405775086,0.0004,58971.0,58970.0,6.40252885]
[1617405775289,0.0004,58971.0,58970.0,6.44252885]
[1617405775490,0.0004,58971.0,58970.0,7.35147764]
[1617405775690,0.0004,58971.0,58970.0,11.51147764]
[1617405776502,0.0004,58971.0,58970.0,7.44252885]
[1617405776705,0.0004,58971.0,58970.0,6.73711505]
[1617405776908,0.0004,58971.0,58970.0,7.74252885]
[1617405777108,0.0004,58987.0,58975.0,2.592599]
[1617405777306,0.0004,58987.0,58975.0,4.29468329]
[1617405777502,0.0004,58987.0,58975.0,3.4203207]
[1617405777702,0.0004,58987.0,58975.0,6.3703207]
[1617405777903,0.0004,58987.0,58975.0,7.3703207]
[1617405778105,0.0004,58987.0,58975.0,8.3357345]
[1617405778312,0.0004,58987.0,58975.0,8.39376608]
[1617405778717,0.0004,58987.0,58975.0,8.3357345]
[1617405778916,0.0004,58987.0,58975.0,5.3857345]
[1617405779117,3.0,58977.0,58975.0,5.8857345]
[1617405779319,2.4016,58977.0,58976.0,7.42955904]
[1617405779518,2.4016,58977.0,58976.0,7.78755836]
[1617405779718,2.4016,58977.0,58976.0,7.87860957]
[1617405779917,2.4016,58977.0,58976.0,1.78463353]
[1617405780117,2.4016,58977.0,58976.0,2.28463353]
[1617405780318,2.4016,58977.0,58976.0,2.19358232]
[1617405780521,2.4016,58977.0,58976.0,2.49358232]
[1617405780721,2.4016,58977.0,58976.0,2.73358232]
[1617405780927,2.4016,58977.0,58976.0,2.49358232]
[1617405781545,2.4016,58977.0,58976.0,2.45358232]
[1617405781746,2.4016,58977.0,58976.0,2.435583]
[1617405781943,2.4016,58977.0,58976.0,1.935583]
[1617405782344,2.3966,58977.0,58976.0,6.572863]
[1617405782744,2.3966,58977.0,58976.0,8.182863]
[1617405782948,2.3966,58977.0,58976.0,8.39543397]
[1617405783145,2.0884,58977.0,58976.0,8.337453]
[1617405783344,2.0884,58977.0,58976.0,8.42850421]
[1617405783548,2.0884,58977.0,58976.0,9.39391801]
[1617405783743,2.0884,58977.0,58976.0,12.16391801]
[1617405783968,2.0884,58977.0,58976.0,2.73850421]
[1617405784176,2.0884,58977.0,58976.0,2.58391421]
[1617405784439,2.0884,58977.0,58976.0,2.82391421]
[1617405784638,2.0884,58977.0,58976.0,9.60730044]
[1617405785048,2.0884,58977.0,58976.0,9.54932801]
[1617405785643,2.0884,58977.0,58976.0,8.58391421]
[1617405786041,2.0884,58977.0,58976.0,2.82391421]
[1617405786246,2.0884,58977.0,58976.0,2.58391421]
[1617405786442,2.0884,58977.0,58976.0,2.48163421]
[1617405786643,2.0884,58977.0,58976.0,7.93163421]
[1617405787041,1.99045693,58977.0,58976.0,7.93163421]
[1617405787440,1.99045693,58977.0,58976.0,2.670583]
[1617405787644,1.99045693,58977.0,58976.0,2.035583]
[1617405788043,1.99045693,58977.0,58976.0,1.995583]
[1617405788242,1.99045693,58977.0,58976.0,2.09339443]
[1617405788445,1.99045693,58977.0,58976.0,2.035583]
[1617405788643,1.98545693,58977.0,58976.0,4.905583]
[1617405788845,1.98545693,58977.0,58976.0,2.275583]
[1617405789045,1.98545693,58977.0,58976.0,1.995583]
[1617405789243,1.98545693,58977.0,58976.0,2.245983]
[1617405789445,1.98545693,58977.0,58976.0,2.285983]
[1617405789643,1.98545693,58977.0,58976.0,2.245983]
[1617405789842,1.98545693,58977.0,58976.0,1.535983]
[1617405790243,1.98545693,58977.0,58976.0,1.43518984]
[1617405790444,0.98545693,58977.0,58976.0,4.12518984]
[1617405790643,0.98545693,58977.0,58976.0,7.43518984]
[1617405790845,0.98545693,58977.0,58976.0,8.03618344]
[1617405791645,0.98545693,58977.0,58976.0,2.29618344]
[1617405791849,0.98545693,58977.0,58976.0,1.99618344]
[1617405792052,0.98545693,58977.0,58976.0,2.0541587]
[1617405792448,1.49412693,58977.0,58976.0,0.19618344]
[1617405792647,1.49412693,58977.0,58976.0,0.04963884]
[1617405793047,1.49412693,58977.0,58976.0,0.08833775]
[1617405793247,1.49412693,58977.0,58976.0,0.04963884]
[1617405794053,1.77412693,58977.0,58976.0,0.04963884]
[1617405794246,1.93012693,58977.0,58976.0,0.04963884]
[1617405795070,1.77412693,58977.0,58976.0,0.04963884]
[1617405795270,1.49412693,58977.0,58976.0,0.04963884]
[1617405797098,1.54412693,58977.0,58976.0,0.04963884]
[1617405797299,1.49412693,58977.0,58976.0,0.04963884]
[1617405798299,1.78412693,58977.0,58976.0,0.04963884]
[1617405799776,1.93812693,58977.0,58976.0,0.04963884]
[1617405800175,1.78412693,58977.0,58976.0,0.04963884]
[1617405800979,1.77912693,58977.0,58976.0,0.04963884]
[1617405801382,1.48912693,58977.0,58976.0,0.04963884]
[1617405801779,1.65212693,58977.0,58976.0,0.04963884]
[1617405801981,1.48912693,58977.0,58976.0,0.04963884]
[1617405802382,1.48412693,58977.0,58976.0,0.04963884]
[1617405802578,1.63912693,58977.0,58976.0,0.04963884]
[1617405802782,2.02615193,58977.0,58976.0,0.04963884]
[1617405802982,2.27515193,58977.0,58976.0,0.04963884]
[1617405803187,2.37515193,58977.0,58976.0,0.04963884]
[1617405803385,4.27515193,58977.0,58976.0,0.0004]
[1617405803582,4.48187574,58977.0,58976.0,0.0004]
[1617405803780,4.78187574,58977.0,58976.0,0.0004]
[1617405804382,4.83187574,58977.0,58976.0,0.0004]
[1617405804590,4.83187574,58977.0,58971.0,0.0004]
[1617405804591,0.1,58976.0,58971.0,0.0004]
[1617405804785,0.04,58971.0,58970.0,1.0]
[1617405804982,3.97132669,58971.0,58970.0,1.0]
[1617405805183,4.82717197,58971.0,58970.0,0.66103996]
[1617405805386,4.82717197,58971.0,58970.0,0.49155996]
[1617405805387,5.61947874,58971.0,58970.0,0.49155996]
[1617405805582,5.37947874,58971.0,58970.0,0.48089249]
[1617405805783,5.32947874,58971.0,58970.0,0.48089249]
[1617405805985,5.66842274,58971.0,58970.0,0.48089249]
[1617405806180,5.54668814,58971.0,58970.0,0.48089249]
[1617405807184,5.14668814,58971.0,58970.0,0.48089249]
[1617405808193,4.93758274,58971.0,58970.0,0.48089249]
[1617405809392,4.48758274,58971.0,58970.0,0.48089249]
[1617405809595,4.63758274,58971.0,58970.0,0.48089249]
[1617405810825,4.58758274,58971.0,58970.0,0.48089249]
[1617405811224,4.48758274,58971.0,58970.0,0.48089249]
[1617405811426,4.58758274,58971.0,58970.0,0.48089249]
[1617405811627,4.82758274,58971.0,58970.0,0.46589249]
[1617405811827,4.58758274,58971.0,58970.0,0.46589249]
[1617405812024,4.58758274,58971.0,58970.0,0.46089249]
[1617405812225,4.63758274,58971.0,58970.0,0.46089249]
[1617405813062,4.69692274,58971.0,58970.0,0.46089249]
[1617405813459,4.93692274,58971.0,58970.0,0.46089249]
[1617405813661,4.86106274,58971.0,58970.0,0.46089249]
[1617405813861,5.11106274,58971.0,58970.0,0.46089249]
[1617405814925,5.40106274,58971.0,58970.0,0.46089249]
[1617405815124,5.11106274,58971.0,58970.0,0.46089249]
[1617405815557,4.99692274,58971.0,58970.0,0.46089249]
[1617405815749,4.88758274,58971.0,58970.0,0.46089249]
[1617405815947,4.78758274,58971.0,58970.0,0.46089249]
[1617405817247,5.35602177,58971.0,58970.0,0.46089249]
[1617405818262,5.50602177,58971.0,58970.0,0.46089249]
[1617405818461,5.55589177,58971.0,58970.0,0.46089249]
[1617405818662,5.55089177,58971.0,58970.0,0.46089249]